bitfinex-derivatives/quotes_BTCF0:USTF0_20210703
["timestamp","ask_amount","ask_price","bid_price","bid_amount"]
[1625351843177,0.24057544,34334.0,34333.0,1.80300579]
[1625351843273,0.24057544,34334.0,34333.0,1.74400579]
[1625351843525,0.24057544,34334.0,34333.0,2.77584741]
[1625351843675,0.24057544,34334.0,34333.0,2.83484741]
[1625351843976,0.24057544,34334.0,34333.0,1.80300579]
[1625351844326,0.24057544,34334.0,34333.0,1.74400579]
[1625351844476,0.24057544,34334.0,34333.0,2.83476184]
[1625351844978,0.24057544,34334.0,34333.0,2.77576184]
[1625351845328,0.24057544,34334.0,34333.0,2.8391833]
[1625351846082,0.48116003,34335.0,34333.0,2.8391833]
[1625351846083,0.48116003,34335.0,34333.0,1.80742725]
[1625351846384,0.36496003,34335.0,34333.0,1.80742725]
[1625351846532,0.24946003,34335.0,34334.0,0.00442559]
[1625351846632,0.19146003,34335.0,34334.0,0.12242559]
[1625351846783,0.18296003,34335.0,34334.0,0.12242559]
[1625351847285,0.16046328,34339.0,34334.0,3.5610431]
[1625351847484,0.16046328,34339.0,34338.0,0.49064544]
[1625351847583,0.16046328,34339.0,34338.0,0.60864544]
[1625351847684,0.1604509,34340.0,34338.0,1.8119012]
[1625351847785,0.1604509,34340.0,34338.0,1.81633252]
[1625351848083,0.1604509,34340.0,34339.0,0.00443132]
[1625351848185,0.1604509,34340.0,34339.0,0.06343132]
[1625351848284,0.1604509,34340.0,34339.0,0.12243132]
[1625351848433,0.1604509,34340.0,34339.0,0.63810486]
[1625351849688,0.1604509,34340.0,34339.0,0.29429839]
[1625351850238,0.1604509,34340.0,34339.0,0.12243132]
[1625351850338,0.1604509,34340.0,34339.0,0.63813481]
[1625351851340,0.1604509,34340.0,34339.0,0.57913481]
[1625351851441,0.24057544,34340.0,34339.0,2.29782059]
[1625351851943,0.29757544,34340.0,34339.0,2.29782059]
[1625351852095,0.77822464,34340.0,34339.0,0.57913481]
[1625351852396,0.77822464,34340.0,34339.0,0.52013481]
[1625351852598,0.77822464,34340.0,34339.0,0.17634854]
[1625351852796,0.79285868,34340.0,34339.0,0.17634854]
[1625351852996,0.79285868,34340.0,34339.0,0.00443132]
[1625351852997,2.39365383,34340.0,34339.0,0.00443132]
[1625351853345,2.66482383,34340.0,34339.0,0.00443132]
[1625351853498,2.90539927,34340.0,34339.0,0.00443132]
[1625351854147,2.90539927,34340.0,34338.0,0.24057544]
[1625351854397,0.01463416,34339.0,34338.0,0.24057544]
[1625351854497,0.01463416,34339.0,34336.0,0.41249272]
[1625351854597,0.01463416,34339.0,34335.0,1.20342552]
[1625351854798,3.19918101,34336.0,34330.0,1.2035639]
[1625351854947,0.057,34335.0,34330.0,1.2035639]
[1625351855047,0.116,34335.0,34330.0,1.2625639]
[1625351855149,0.13063646,34335.0,34331.0,0.00443537]
[1625351855401,0.01463706,34334.0,34331.0,0.059]
[1625351855498,0.72172632,34332.0,34331.0,0.059]
[1625351855648,0.77872632,34332.0,34331.0,0.059]
[1625351855748,0.83772632,34332.0,34331.0,0.059]
[1625351856000,0.85236433,34332.0,34331.0,0.059]
[1625351856100,5.32242018,34332.0,34331.0,0.059]
[1625351859207,5.30778217,34332.0,34331.0,0.059]
[1625351859608,4.03069176,34332.0,34331.0,0.059]
[1625351862562,2.9132177,34332.0,34331.0,0.059]
[1625351862762,2.8542177,34332.0,34331.0,0.059]
[1625351864114,2.7972177,34332.0,34328.0,0.087]
[1625351864220,1.54577498,34332.0,34329.0,0.25512567]
[1625351864321,1.60477498,34332.0,34329.0,0.25512567]
[1625351864417,1.60477498,34332.0,34329.0,0.05122567]
[1625351864516,0.01463998,34331.0,34328.0,0.08799324]
[1625351864617,0.13263998,34331.0,34328.0,0.08799324]
[1625351864770,0.175,34330.0,34328.0,0.02899324]
[1625351864873,0.175,34330.0,34328.0,0.01789324]
[1625351864976,0.175,34330.0,34327.0,0.97274459]
[1625351865071,2.26482499,34330.0,34320.0,1.03117006]
[1625351865273,0.0146427,34329.0,34320.0,1.03117006]
[1625351865370,0.0736427,34329.0,34320.0,1.03117006]
[1625351865469,0.1326427,34329.0,34320.0,1.03117006]
[1625351865571,0.1326427,34329.0,34306.0,1.20318054]
[1625351865572,3.10765454,34321.0,34306.0,1.20318054]
[1625351865671,0.057,34320.0,34306.0,1.26218054]
[1625351865821,0.175,34320.0,34306.0,1.26218054]
[1625351866073,1.11307959,34316.0,34306.0,0.059]
[1625351866171,0.057,34315.0,34306.0,0.059]
[1625351866272,0.116,34315.0,34306.0,0.059]
[1625351866372,0.175,34315.0,34306.0,0.059]
[1625351867124,0.175,34315.0,34303.0,1.20215988]
[1625351867524,0.96230176,34304.0,34303.0,1.20215988]
[1625351867626,1.28591176,34304.0,34303.0,1.20215988]
[1625351867726,1.28591176,34304.0,34301.0,0.9272]
[1625351867826,1.28591176,34304.0,34301.0,0.9862]
[1625351868276,1.22691176,34304.0,34301.0,0.9862]
[1625351868426,0.92933632,34304.0,34301.0,1.0452]
[1625351868627,0.98633632,34304.0,34301.0,0.9862]
[1625351869077,0.98633632,34304.0,34302.0,1.20209666]
[1625351869282,0.98633632,34304.0,34302.0,1.26109666]
[1625351869676,0.98633632,34304.0,34302.0,0.059]
[1625351869878,1.04533632,34304.0,34301.0,0.9272]
[1625351870728,1.10433632,34304.0,34301.0,0.9272]
[1625351870827,1.04533632,34304.0,34301.0,0.9272]
[1625351871630,1.04533632,34304.0,34301.0,0.9862]
[1625351873288,0.83772632,34304.0,34301.0,0.9862]
[1625351873740,0.77872632,34304.0,34301.0,0.9862]
[1625351874140,0.77872632,34304.0,34301.0,0.9272]
[1625351874442,0.77872632,34304.0,34301.0,0.9862]
[1625351875292,0.77872632,34304.0,34301.0,0.9272]
[1625351875441,0.83772632,34304.0,34301.0,0.9272]
[1625351875743,0.83772632,34304.0,34301.0,0.9862]
[1625351881605,0.78072632,34304.0,34301.0,0.9862]
[1625351881705,0.24057544,34304.0,34301.0,1.21048]
[1625351881806,0.23057544,34304.0,34301.0,1.21048]
[1625351881906,0.23057544,34304.0,34301.0,1.26948]
[1625351883207,0.17057544,34304.0,34301.0,1.26948]
[1625351883607,0.057,34310.0,34303.0,0.48115088]
[1625351883708,0.24057544,34308.0,34303.0,0.48115088]
[1625351883856,0.24057544,34308.0,34303.0,0.59915088]
[1625351885663,0.24057544,34308.0,34307.0,0.24057544]
[1625351885764,0.24057544,34308.0,34307.0,0.29957544]
[1625351887117,0.24057544,34308.0,34307.0,0.51100544]
[1625351887972,0.24057544,34308.0,34307.0,0.57000544]
[1625351888072,0.24057544,34308.0,34307.0,0.51100544]
[1625351888174,0.18157544,34308.0,34307.0,0.51100544]
[1625351888274,0.24057544,34311.0,34307.0,0.57444064]
[1625351888522,0.24057544,34311.0,34307.0,0.51100544]
[1625351888625,0.24057544,34311.0,34307.0,0.57000544]
[1625351888775,0.24057544,34311.0,34307.0,0.51100544]
[1625351888873,0.24057544,34311.0,34307.0,0.57000544]
[1625351889124,1.2621855,34331.0,34307.0,0.57000544]
[1625351889125,1.10386925,34328.0,34307.0,0.57000544]
[1625351889223,1.10386925,34328.0,34308.0,1.0]
[1625351889374,1.10386925,34328.0,34308.0,1.12243477]
[1625351889576,1.10386925,34328.0,34309.0,0.00442507]
[1625351889677,1.10386925,34328.0,34327.0,0.48115088]
[1625351889778,0.24057544,34329.0,34327.0,0.79095088]
[1625351890428,0.00263263,34328.0,34327.0,0.79095088]
[1625351891181,0.00263263,34328.0,34327.0,0.73195088]
[1625351891285,0.05963263,34328.0,34327.0,0.73195088]
[1625351891582,0.05963263,34328.0,34327.0,0.48115088]
[1625351893838,0.05963263,34328.0,34327.0,0.54015088]
[1625351894088,0.05963263,34328.0,34327.0,0.59915088]
[1625351894189,0.05963263,34328.0,34327.0,0.54015088]
[1625351895341,0.31078263,34328.0,34327.0,0.48115088]
[1625351899150,0.36978263,34328.0,34327.0,0.48115088]
[1625351899251,0.42878263,34328.0,34327.0,0.48115088]
[1625351899753,0.66935807,34328.0,34327.0,0.48115088]
[1625351901356,0.61035807,34328.0,34327.0,0.48115088]
[1625351901457,0.55135807,34328.0,34327.0,0.48115088]
[1625351902107,0.61035807,34328.0,34327.0,0.48115088]
[1625351902256,0.66935807,34328.0,34327.0,0.48115088]
[1625351902712,0.61035807,34328.0,34327.0,0.48115088]
[1625351903609,0.55135807,34328.0,34327.0,0.48115088]
[1625351903911,0.30020807,34328.0,34327.0,0.48115088]
[1625351904361,0.24320807,34328.0,34327.0,0.48115088]
[1625351904662,0.24320807,34328.0,34327.0,0.54015088]
[1625351905461,0.00263263,34328.0,34327.0,0.54015088]
[1625351905610,0.00263263,34328.0,34327.0,0.48115088]
[1625351905761,0.00263263,34328.0,34327.0,0.59915088]
[1625351907823,0.24057544,34336.0,34327.0,0.59915088]
[1625351909773,0.24057544,34336.0,34335.0,0.48115088]
[1625351909872,0.24057544,34336.0,34335.0,0.54015088]
[1625351910224,0.24057544,34336.0,34335.0,0.59915088]
[1625351910325,0.24057544,34336.0,34335.0,0.54015088]
[1625351911177,0.24057544,34336.0,34335.0,0.48115088]
[1625351912883,0.24057544,34336.0,34335.0,0.54015088]
[1625351913581,0.24057544,34336.0,34335.0,0.59915088]
[1625351913681,0.95306088,34339.0,34335.0,0.59915088]
[1625351914783,0.95306088,34339.0,34335.0,0.54015088]
[1625351915335,1.01006088,34339.0,34335.0,0.54015088]
[1625351915886,0.95353675,34338.0,34335.0,0.54015088]
[1625351916689,0.95398812,34339.0,34335.0,0.54015088]
[1625351917940,1.01098812,34339.0,34335.0,0.54015088]
[1625351918343,0.95362251,34338.0,34335.0,0.54015088]
[1625351918895,1.01262251,34338.0,34335.0,0.54015088]
[1625351919044,0.01464587,34337.0,34335.0,0.54015088]
[1625351919395,0.07164587,34337.0,34335.0,0.54015088]
[1625351919495,0.18964587,34337.0,34335.0,0.48115088]
[1625351919697,1.142736,34337.0,34335.0,0.48115088]
[1625351919797,0.24057544,34336.0,34335.0,0.48115088]
[1625351919899,0.29757544,34336.0,34335.0,0.48115088]
[1625351919998,0.37122222,34336.0,34335.0,0.48115088]
[1625351920099,0.43022222,34336.0,34335.0,0.48115088]
[1625351920248,0.43022222,34336.0,34335.0,0.24057544]
[1625351920249,2.4932682,34336.0,34335.0,0.24057544]
[1625351920600,2.4932682,34336.0,34326.0,0.24057544]
[1625351920851,2.4932682,34336.0,34317.0,1.96962255]
[1625351921051,0.5491957,34335.0,34317.0,1.96962255]
[1625351921150,0.057,34334.0,34317.0,1.96962255]
[1625351921253,0.116,34334.0,34317.0,0.9425]
[1625351921353,0.22419941,34334.0,34317.0,0.9425]
[1625351921602,0.04920029,34333.0,34317.0,0.9425]
[1625351921751,0.10820029,34333.0,34317.0,0.9425]
[1625351921903,1.22205176,34318.0,34317.0,0.9425]
[1625351922002,1.39705176,34318.0,34317.0,0.9425]
[1625351922352,1.4117036,34318.0,34317.0,0.9425]
[1625351922504,2.3628493,34318.0,34317.0,0.9425]
[1625351922903,2.34819746,34318.0,34317.0,0.9425]
[1625351924306,1.39705176,34318.0,34317.0,0.9425]
[1625351924506,1.33805176,34318.0,34317.0,0.9425]
[1625351925407,1.27905176,34318.0,34317.0,0.9425]
[1625351926364,1.22205176,34318.0,34317.0,0.9425]
[1625351926463,0.96230176,34318.0,34317.0,0.9425]
[1625351928163,1.01930176,34318.0,34317.0,0.9425]
[1625351928916,0.96230176,34318.0,34317.0,0.9425]
[1625351929568,1.02130176,34318.0,34317.0,0.9425]
[1625351929667,1.23242176,34318.0,34317.0,0.9425]
[1625351929768,1.34842176,34318.0,34317.0,0.9425]
[1625351931071,1.28942176,34318.0,34317.0,0.9425]
[1625351931219,1.23042176,34318.0,34317.0,0.9425]
[1625351931772,1.01930176,34318.0,34317.0,0.9425]
[1625351932823,0.96230176,34318.0,34317.0,0.9425]
[1625351933024,0.96230176,34318.0,34317.0,1.0015]
[1625351933373,0.96230176,34318.0,34317.0,0.9425]
[1625351933924,0.96230176,34318.0,34317.0,1.0015]
[1625351936130,0.72172632,34318.0,34317.0,1.0015]
[1625351937334,0.72172632,34318.0,34317.0,1.0605]
[1625351937688,0.72172632,34318.0,34317.0,3.97952049]
[1625351937836,0.63759813,34330.0,34317.0,3.97952049]
[1625351937937,0.24057544,34322.0,34317.0,4.22009593]
[1625351938188,0.24057544,34322.0,34321.0,1.02863308]
[1625351938288,0.24057544,34322.0,34321.0,1.40163308]
[1625351938392,0.24057544,34326.0,34321.0,1.46063308]
[1625351939390,0.24057544,34326.0,34323.0,0.68613164]
[1625351939540,0.24057544,34326.0,34323.0,0.74513164]
[1625351939891,0.24057544,34326.0,34325.0,0.48115088]
[1625351939991,0.24057544,34326.0,34325.0,0.54015088]
[1625351940443,0.24057544,34329.0,34325.0,0.54015088]
[1625351940895,0.057,34328.0,34325.0,0.48115088]
[1625351941796,0.07954126,34327.0,34325.0,0.48115088]
[1625351941896,0.24057544,34326.0,34325.0,0.48115088]
[1625351941997,0.29757544,34326.0,34325.0,0.48115088]
[1625351942148,0.41557544,34326.0,34325.0,0.48115088]
[1625351942247,1.05092665,34326.0,34325.0,0.24057544]
[1625351942347,0.99192665,34326.0,34319.0,0.08580613]
[1625351942447,1.05092665,34326.0,34319.0,0.08580613]
[1625351942748,0.0795564,34321.0,34317.0,1.26889663]
[1625351942897,0.4533264,34321.0,34317.0,1.26889663]
[1625351942997,0.057,34320.0,34317.0,1.26889663]
[1625351943098,0.19557825,34320.0,34317.0,1.18307544]
[1625351943248,0.13657825,34320.0,34317.0,1.18307544]
[1625351943348,0.13657825,34320.0,34317.0,1.24207544]
[1625351943751,0.13657825,34320.0,34317.0,1.30107544]
[1625351943952,0.48115088,34318.0,34317.0,1.30107544]
[1625351944350,0.48115088,34318.0,34317.0,1.38690532]
[1625351946914,0.48115088,34318.0,34317.0,1.30107544]
[1625351947210,0.48115088,34318.0,34317.0,1.30550818]
[1625351947362,0.48115088,34318.0,34317.0,3.02308634]
[1625351947811,0.48115088,34318.0,34317.0,1.99253944]
[1625351948012,0.48115088,34318.0,34317.0,1.9881067]
[1625351948915,0.48115088,34318.0,34317.0,1.30107544]
[1625351949064,0.48115088,34318.0,34317.0,1.30550836]
[1625351949917,0.48115088,34318.0,34317.0,1.99258571]
[1625351950217,0.48115088,34318.0,34317.0,1.93358571]
[1625351950470,0.53815088,34318.0,34317.0,1.93358571]
[1625351950570,0.53815088,34318.0,34317.0,1.87458571]
[1625351950670,0.85130088,34318.0,34317.0,1.87458571]
[1625351950870,0.79430088,34318.0,34317.0,1.87015279]
[1625351950971,0.79430088,34318.0,34317.0,1.32796182]
[1625351951071,0.79430088,34318.0,34317.0,1.66568182]
[1625351951174,0.48115088,34318.0,34317.0,1.67011081]
[1625351951272,0.48115088,34318.0,34317.0,2.2712979]
[1625351951724,0.48115088,34318.0,34317.0,2.2122979]
[1625351951826,0.48115088,34318.0,34317.0,3.18387935]
[1625351952133,0.48115088,34318.0,34317.0,1.46622443]
[1625351952229,0.48115088,34318.0,34317.0,1.46179544]
[1625351952328,0.48115088,34318.0,34317.0,1.18307544]
[1625351952529,0.56056467,34318.0,34317.0,1.18307544]
[1625351952777,0.56056467,34318.0,34317.0,1.24207544]
[1625351952878,0.61756467,34318.0,34317.0,1.24207544]
[1625351952978,0.61756467,34318.0,34317.0,1.18307544]
[1625351953083,0.73556467,34318.0,34317.0,0.9425]
[1625351953580,4.61645337,34318.0,34317.0,0.9425]
[1625351954080,4.85702881,34318.0,34317.0,0.9425]
[1625351954179,4.87169078,34318.0,34317.0,0.9425]
[1625351955032,5.34682803,34318.0,34317.0,0.9425]
[1625351957040,5.33216606,34318.0,34317.0,0.9425]
[1625351957640,5.27316606,34318.0,34317.0,0.9425]
[1625351957940,5.21416606,34318.0,34317.0,0.9425]
[1625351958341,2.83804792,34318.0,34317.0,0.9425]
[1625351958792,2.83804792,34318.0,34317.0,1.0015]
[1625351958894,1.25386357,34318.0,34317.0,1.0015]
[1625351959143,1.25386357,34318.0,34317.0,1.0605]
[1625351959344,0.80117825,34318.0,34317.0,1.0605]
[1625351959896,0.72172632,34318.0,34317.0,1.0605]
[1625351960946,0.72172632,34318.0,34317.0,1.0015]
[1625351963304,0.72172632,34318.0,34317.0,1.34093]
[1625351963756,0.72172632,34318.0,34317.0,1.34535766]
[1625351963908,0.72172632,34318.0,34317.0,1.86015517]
[1625351964057,0.72172632,34318.0,34317.0,2.10073061]
[1625351964259,0.72172632,34318.0,34317.0,2.78719825]
[1625351966013,0.72172632,34318.0,34317.0,3.81676519]
[1625351967217,0.99950632,34318.0,34317.0,3.53633519]
[1625351967518,1.05650632,34318.0,34317.0,1.52631695]
[1625351968020,1.05650632,34318.0,34317.0,1.18307544]
[1625351968619,0.99950632,34318.0,34317.0,1.24207544]
[1625351968870,0.99950632,34318.0,34317.0,1.67122195]
[1625351969121,0.99950632,34318.0,34317.0,1.73464962]
[1625351969474,0.99950632,34318.0,34317.0,1.64882032]
[1625351971427,0.99950632,34318.0,34317.0,1.82061607]
[1625351972828,0.72172632,34318.0,34317.0,1.82061607]
[1625351972930,0.07942714,34322.0,34317.0,1.82061607]
[1625351973030,0.07942714,34322.0,34317.0,2.08519607]
[1625351973131,0.07942714,34322.0,34317.0,2.77221025]
[1625351973433,0.07942714,34322.0,34318.0,0.00443046]
[1625351973535,0.4542924,34324.0,34321.0,0.08587278]
[1625351973635,0.4542924,34324.0,34321.0,0.14487278]
[1625351974136,0.4542924,34324.0,34323.0,0.24057544]
[1625351974887,0.37473865,34324.0,34323.0,0.24057544]
[1625351974990,0.37473865,34324.0,34321.0,0.42949889]
[1625351975139,0.62527865,34324.0,34321.0,0.42949889]
[1625351975443,0.62527865,34324.0,34319.0,0.0859119]
[1625351975444,0.79442456,34322.0,34319.0,0.0859119]
[1625351975893,0.07956873,34321.0,34319.0,0.0859119]
[1625351976143,0.24057544,34320.0,34319.0,0.0859119]
[1625351976545,0.32031703,34320.0,34319.0,0.0859119]
[1625351977045,0.32031703,34320.0,34319.0,0.09034255]
[1625351977148,0.32031703,34320.0,34319.0,0.43413882]
[1625351977247,0.32031703,34320.0,34319.0,0.42970817]
[1625351977697,0.32031703,34320.0,34319.0,0.48870817]
[1625351977797,0.32031703,34320.0,34319.0,0.49313878]
[1625351978148,0.24057544,34320.0,34319.0,0.40722688]
[1625351978800,0.24057544,34320.0,34319.0,0.57914287]
[1625351979655,0.24057544,34320.0,34319.0,2.29878564]
[1625351979803,0.24057544,34320.0,34319.0,2.35778564]
[1625351979902,0.07979565,34322.0,34319.0,2.35778564]
[1625351980102,0.07979565,34322.0,34320.0,0.0869]
[1625351980204,0.0798626,34326.0,34321.0,0.48115088]
[1625351980403,0.0798626,34326.0,34321.0,0.54015088]
[1625351980503,0.0798626,34326.0,34321.0,0.60358035]
[1625351980754,1.11616351,34328.0,34321.0,0.60358035]
[1625351980755,0.39870254,34328.0,34325.0,1.20328226]
[1625351980853,0.39870254,34328.0,34325.0,1.32128226]
[1625351981206,0.39870254,34328.0,34326.0,0.00442937]
[1625351981303,0.39870254,34328.0,34326.0,0.30679937]
[1625351981406,0.39870254,34328.0,34326.0,0.42479937]
[1625351981506,0.07983612,34328.0,34327.0,0.85946765]
[1625351981755,0.07983612,34328.0,34327.0,0.91846765]
[1625351982057,0.07983612,34328.0,34327.0,0.57468059]
[1625351982254,0.07983612,34328.0,34327.0,0.81525603]
[1625351982356,0.07983612,34328.0,34327.0,0.75625603]
[1625351982759,0.057,34328.0,34327.0,0.24057544]
[1625351982908,0.29888,34328.0,34327.0,0.24057544]
[1625351983007,0.35788,34328.0,34327.0,0.24057544]
[1625351983112,0.35788,34328.0,34321.0,0.24057544]
[1625351983408,4.81219773,34328.0,34321.0,0.24057544]
[1625351983506,4.87119773,34328.0,34321.0,0.24057544]
[1625351983910,1.11299058,34322.0,34321.0,0.24057544]
[1625351984009,1.16999058,34322.0,34321.0,0.24057544]
[1625351984158,1.22899058,34322.0,34321.0,0.24057544]
[1625351984259,1.71014146,34322.0,34321.0,0.24057544]
[1625351984360,2.66358033,34322.0,34321.0,0.24057544]
[1625351984461,2.72258033,34322.0,34321.0,0.24057544]
[1625351984562,2.72258033,34322.0,34318.0,0.0859679]
[1625351984912,5.10283907,34322.0,34317.0,0.9425]
[1625351985267,3.17261216,34318.0,34317.0,0.9425]
[1625351985362,3.44313216,34318.0,34317.0,0.9425]
[1625351985462,3.50213216,34318.0,34317.0,0.9425]
[1625351985863,3.44313216,34318.0,34317.0,0.9425]
[1625351986267,3.6837076,34318.0,34317.0,0.9425]
[1625351986718,1.62160485,34318.0,34317.0,0.9425]
[1625351986817,1.40808485,34318.0,34317.0,0.9425]
[1625351987016,1.40808485,34318.0,34317.0,1.0015]
[1625351987118,1.35108485,34318.0,34317.0,1.0605]
[1625351987271,1.35108485,34318.0,34317.0,1.06493098]
[1625351987517,0.24057544,34318.0,34317.0,3.30033497]
[1625351987919,0.24057544,34318.0,34317.0,2.26861005]
[1625351988467,0.24057544,34318.0,34317.0,2.20961005]
[1625351988618,0.24057544,34318.0,34317.0,1.58079344]
[1625351988769,0.24057544,34318.0,34317.0,1.52179344]
[1625351989020,0.32016478,34318.0,34317.0,1.86569477]
[1625351989372,0.32016478,34318.0,34317.0,1.34983231]
[1625351989720,0.63781071,34318.0,34317.0,1.34983231]
[1625351990174,0.32016478,34318.0,34317.0,1.34983231]
[1625351990772,0.37716478,34318.0,34317.0,1.34983231]
[1625351991075,0.61524759,34318.0,34317.0,1.09192016]
[1625351991174,0.61524759,34318.0,34317.0,1.15092016]
[1625351991273,0.61524759,34318.0,34317.0,1.09192016]
[1625351991375,0.61524759,34318.0,34317.0,1.15092016]
[1625351991526,0.29757544,34318.0,34317.0,2.20983596]
[1625351991624,0.29757544,34318.0,34317.0,2.26883596]
[1625351992075,0.37713967,34318.0,34317.0,1.58089026]
[1625351993079,0.37713967,34318.0,34317.0,1.924878]
[1625351993229,0.37713967,34318.0,34317.0,1.865878]
[1625351993329,0.37713967,34318.0,34317.0,1.924878]
[1625351993479,0.37713967,34318.0,34317.0,1.58089026]
[1625351994081,0.32013967,34318.0,34317.0,1.58089026]
[1625351994531,0.24057544,34318.0,34317.0,2.26889628]
[1625351994632,0.397435,34319.0,34317.0,2.26889628]
[1625351995036,1.43491984,34322.0,34318.0,2.23564647]
[1625351995037,0.56084733,34322.0,34318.0,2.23564647]
[1625351995135,0.56084733,34322.0,34318.0,2.50996639]
[1625351995235,0.56084733,34322.0,34318.0,2.62796639]
[1625351995438,0.56084733,34322.0,34319.0,0.00442982]
[1625351995537,0.48115088,34322.0,34321.0,2.23558543]
[1625351995743,0.48115088,34322.0,34321.0,2.35358543]
[1625351995943,0.48115088,34322.0,34321.0,2.35801515]
[1625351996244,0.48115088,34322.0,34321.0,2.59859059]
[1625351996647,0.48115088,34322.0,34321.0,3.80232367]
[1625351996896,0.07976547,34326.0,34321.0,3.80232367]
[1625351996998,0.39847962,34328.0,34321.0,5.17787549]
[1625351997250,0.39847962,34328.0,34322.0,0.00442835]
[1625351997348,0.39847962,34328.0,34322.0,0.06342835]
[1625351997449,0.39847962,34328.0,34322.0,0.12242835]
[1625351997699,0.07988429,34334.0,34327.0,4.81127172]
[1625351997799,0.07988429,34334.0,34327.0,5.07326172]
[1625351997901,0.07988429,34334.0,34327.0,5.19126172]
[1625351998050,0.07988429,34334.0,34328.0,0.00442839]
[1625351998250,0.0798421,34332.0,34331.0,0.42959306]
[1625351998398,0.0798421,34332.0,34331.0,0.48859306]
[1625351998498,0.0798421,34332.0,34331.0,0.54759306]
[1625351999101,0.0798421,34332.0,34331.0,0.46167445]
[1625351999406,0.32039292,34333.0,34331.0,0.54756812]
[1625351999701,0.32039292,34333.0,34331.0,0.55199639]
[1625351999801,0.32039292,34333.0,34332.0,0.0858933]
[1625352000051,0.32039292,34333.0,34332.0,0.1448933]
[1625352000253,0.32039292,34333.0,34332.0,0.2038933]
[1625352000353,0.32039292,34333.0,34332.0,0.44446874]
[1625352000906,0.24057544,34333.0,34332.0,0.70214064]
[1625352001155,0.24057544,34333.0,34332.0,1.21747264]
[1625352001707,0.24057544,34333.0,34332.0,0.70214064]
[1625352002558,0.24057544,34333.0,34332.0,0.78802417]
[1625352002910,0.24057544,34333.0,34332.0,0.67002417]
[1625352003009,0.37743638,34333.0,34332.0,0.32645897]
[1625352003210,0.43643638,34333.0,34332.0,0.32645897]
[1625352003310,0.43643638,34333.0,34332.0,0.08588353]
[1625352003512,4.81094447,34333.0,34325.0,0.08589801]
[1625352003611,5.12615447,34333.0,34325.0,0.08589801]
[1625352003711,5.12615447,34333.0,34326.0,0.29957544]
[1625352003912,2.06714268,34327.0,34326.0,0.29957544]
[1625352004012,2.12414268,34327.0,34326.0,0.29957544]
[1625352004312,2.36471812,34327.0,34326.0,0.29957544]
[1625352005365,1.41071341,34327.0,34326.0,0.29957544]
[1625352005765,1.35371341,34327.0,34326.0,0.35857544]
[1625352005915,1.35371341,34327.0,34326.0,0.29957544]
[1625352006315,0.71802863,34327.0,34326.0,0.29957544]
[1625352006516,0.71802863,34327.0,34326.0,0.35857544]
[1625352006870,0.24057544,34327.0,34326.0,0.87387363]
[1625352007470,0.24057544,34327.0,34326.0,0.87386533]
[1625352007821,0.24057544,34327.0,34326.0,0.87829376]
[1625352007922,0.24057544,34327.0,34326.0,2.59586726]
[1625352009277,0.24057544,34327.0,34326.0,2.82218726]
[1625352010227,0.24057544,34327.0,34326.0,2.81775883]
[1625352010327,0.057,34332.0,34326.0,2.59143883]
[1625352010929,0.61629915,34332.0,34329.0,0.08583155]
[1625352011031,0.61629915,34332.0,34329.0,0.20383155]
[1625352011381,0.56159793,34331.0,34329.0,0.118]
[1625352011983,0.24190234,34330.0,34329.0,0.118]
[1625352012334,0.24190234,34330.0,34329.0,0.35857544]
[1625352014496,0.5642205,34330.0,34329.0,0.35857544]
[1625352014998,0.24211824,34332.0,34329.0,0.87366857]
[1625352015397,0.29911824,34332.0,34329.0,0.87366857]
[1625352015650,0.13775981,34332.0,34331.0,0.08584783]
[1625352016052,1.18448598,34332.0,34329.0,0.326423]
[1625352016149,1.18448598,34332.0,34329.0,0.444423]
[1625352016550,0.2419517,34330.0,34329.0,0.61619933]
[1625352017000,0.2419517,34330.0,34329.0,0.95974421]
[1625352017553,0.24220694,34331.0,34329.0,0.873879]
[1625352017701,0.24220694,34331.0,34329.0,1.109859]
[1625352018756,0.0807894,34331.0,34330.0,0.85895578]
[1625352018857,0.0807894,34331.0,34330.0,0.97695578]
[1625352019306,0.08082414,34332.0,34330.0,1.32052943]
[1625352019856,0.24229573,34332.0,34331.0,0.51537132]
[1625352020406,0.24229573,34332.0,34331.0,0.60125782]
[1625352020907,0.5651391,34332.0,34331.0,0.25767694]
[1625352021507,0.5651391,34332.0,34331.0,0.26210705]
[1625352022209,0.24229573,34332.0,34331.0,0.60561248]
[1625352022358,0.24229573,34332.0,34331.0,0.66461248]
[1625352022661,0.08082414,34332.0,34331.0,0.57872598]
[1625352023661,0.86262951,34333.0,34331.0,0.92220835]
[1625352024062,0.86262951,34333.0,34332.0,0.00442993]
[1625352024313,0.86262951,34333.0,34332.0,0.09030266]
[1625352024663,0.78178269,34333.0,34332.0,0.00442993]
[1625352025864,1.10449545,34333.0,34332.0,0.00442993]
[1625352026616,0.78189165,34333.0,34332.0,0.00442993]
[1625352028321,0.78240043,34333.0,34332.0,0.00442993]
[1625352028670,0.78240043,34333.0,34331.0,0.00443009]
[1625352028870,1.42898191,34333.0,34331.0,0.14930159]
[1625352029221,1.42898191,34333.0,34332.0,0.00443009]
[1625352029371,1.42898191,34333.0,34332.0,0.06343009]
[1625352029822,1.10611797,34333.0,34332.0,0.06343009]
[1625352030022,1.10611797,34333.0,34332.0,0.00443009]
[1625352030422,0.78240043,34333.0,34332.0,0.00443009]
[1625352030921,1.43025717,34333.0,34332.0,0.00443009]
[1625352031926,1.43025717,34333.0,34331.0,0.00443053]
[1625352032024,1.65564717,34333.0,34331.0,0.00443053]
[1625352032124,1.65564717,34333.0,34332.0,0.00443058]
[1625352032374,1.17082218,34333.0,34332.0,0.00443058]
[1625352032474,1.17082218,34333.0,34331.0,0.00443058]
[1625352032674,1.17082218,34333.0,34332.0,0.00443058]
[1625352033125,0.94543218,34333.0,34332.0,0.00443058]
[1625352033226,0.94543218,34333.0,34331.0,0.00443051]
[1625352033478,1.4316144,34333.0,34331.0,0.00443051]
[1625352033678,1.4316144,34333.0,34331.0,0.06343051]
[1625352033981,1.4316144,34333.0,34332.0,0.00443045]
[1625352034178,1.4316144,34333.0,34332.0,0.06343045]
[1625352035331,1.4462602,34333.0,34332.0,0.06343045]
[1625352037837,0.79840346,34333.0,34332.0,0.06343045]
[1625352038239,0.78375766,34333.0,34332.0,0.06343045]
[1625352038390,0.86493829,34333.0,34332.0,0.66459145]
[1625352039792,0.7837939,34333.0,34332.0,0.66459145]
[1625352041251,0.86489071,34333.0,34332.0,0.66459145]
[1625352042403,0.54079906,34333.0,34332.0,0.66459145]
[1625352042704,0.86475608,34333.0,34332.0,0.32107088]
[1625352044507,0.86475608,34333.0,34332.0,0.31664043]
[1625352044809,0.86475608,34333.0,34332.0,0.32107036]
[1625352044960,0.62418064,34333.0,34332.0,0.32107036]
[1625352045160,0.56718064,34333.0,34332.0,0.32107036]
[1625352045362,0.81028523,34333.0,34332.0,0.92274828]
[1625352046012,0.81028523,34333.0,34332.0,1.00974828]
[1625352046512,0.81028523,34333.0,34332.0,1.25032372]